[Event "Stay Safe Play From Home 246"]
[Site "Emanuel Lasker Arena"]
[Date "2020.06.22"]
[Round "6"]
[White "Don59as"]
[Black "Tustintin"]
[Result "1-0"]
[WhiteElo "2047"]
[BlackElo "1661"]
[Annotator "NA"]
[PlyCount "75"]
[EventDate "2020.06.22"]
[EventType "swiss (blitz)"]
[TimeControl "180"]

1. c4 {[%emt 0:00:02]} c6 {[%emt 0:00:02]} 2. e4 {[%emt 0:00:02]} d5 {[%emt 0:00:00]} 3. cxd5 {[%emt 0:00:01]} cxd5 {[%emt 0:00:03]} 4. e5 {[%emt 0:00:00]} Bf5 {[%emt 0:00:03]} 5. Nf3 {[%emt 0:00:02]} e6 {[%emt 0:00:01]} 6. d4 {[%emt 0:00:01]} Nc6 {[%emt 0:00:03]} 7. Nc3 {[%emt 0:00:01]} Bb4 {[%emt 0:00:03]} 8. Bd3 {[%emt 0:00:01]} Bg4 {[%emt 0:00:03]} 9. Be3 {[%emt 0:00:05]} Nge7 {[%emt 0:00:04]} 10. O-O {[%emt 0:00:02]} Nf5 {[%emt 0:00:01]} 11. Bxf5 {[%emt 0:00:04]} Bxf5 {[%emt 0:00:01]} 12. Rc1 {[%emt 0:00:03]} Rc8 {[%emt 0:00:07]} 13. Qa4 {[%emt 0:00:02]} Bxc3 {[%emt 0:00:06]} 14. Rxc3 {[%emt 0:00:02]} O-O {[%emt 0:00:01]} 15. Rfc1 {[%emt 0:00:01]} Qd7 {[%emt 0:00:17]} 16. h3 {[%emt 0:00:07]} Rfd8 {[%emt 0:00:02]} 17. Qa3 {[%emt 0:00:08]} a6 {[%emt 0:00:03]} 18. Nh4 {[%emt 0:00:09]} Bg6 {[%emt 0:00:23]} 19. Nxg6 {[%emt 0:00:06]} hxg6 {[%emt 0:00:00]} 20. b4 {[%emt 0:00:18]} Na7 {[%emt 0:00:01]} 21. Qb3 {[%emt 0:00:07]} Nb5 {[%emt 0:00:02]} 22. Rc5 {[%emt 0:00:03]} b6 {[%emt 0:00:06]} 23. R5c2 {[%emt 0:00:01]} Rxc2 {[%emt 0:00:08]} 24. Rxc2 {[%emt 0:00:00]} Rc8 {[%emt 0:00:01]} 25. a4 {[%emt 0:00:01]} Rxc2 {[%emt 0:00:08]} 26. Qxc2 {[%emt 0:00:02]} Na3 {[%emt 0:00:02]} 27. Qb3 {[%emt 0:00:06]} Nc4 {[%emt 0:00:03]} 28. Bg5 {[%emt 0:00:05]} b5 {[%emt 0:00:04]} 29. a5 {[%emt 0:00:04]} Qa7 {[%emt 0:00:02]} 30. Be3 {[%emt 0:00:04]} f6 {[%emt 0:00:14]} 31. exf6 {[%emt 0:00:05]} gxf6 {[%emt 0:00:01]} 32. Qd3 {[%emt 0:00:01]} f5 {[%emt 0:00:02]} 33. g4 {[%emt 0:00:01]} Qe7 {[%emt 0:00:03]} 34. Bf4 {[%emt 0:00:08]} Qxb4 {[%emt 0:00:15]} 35. gxf5 {[%emt 0:00:01]} gxf5 {[%emt 0:00:24]} 36. Qg3+ {[%emt 0:00:03]} Kf7 {[%emt 0:00:00]} 37. Qh4 {[%emt 0:00:02]} Qf8 {[%emt 0:00:04] '} 38. Kh2 {[%emt 0:00:04] (Lag: Av=0.68s, max=0.9s)} 1-0